[Event "Rapid della Domenica"]
[Site "Chess.com"]
[Date "2020.05.17"]
[Round "4"]
[White "pedrak"]
[Black "SanSecondoPR"]
[Result "1-0"]
[WhiteElo "1674"]
[BlackElo "1283"]
[TimeControl "720+3"]
[EndTime "7:43:27 PDT"]
[Termination "pedrak ha vinto per abbandono"]

1. d4 {[%clk 0:11:52.1]} 1... d5 {[%clk 0:11:59.1]} 2. Nf3 {[%clk 0:11:52.5]}
2... Nf6 {[%clk 0:11:53]} 3. Bf4 {[%clk 0:11:53.1]} 3... e6 {[%clk 0:11:35.1]}
4. e3 {[%clk 0:11:53.2]} 4... Bd6 {[%clk 0:11:34.7]} 5. Bg3 {[%clk 0:11:54.2]}
5... c6 {[%clk 0:11:27.7]} 6. Bd3 {[%clk 0:11:53.6]} 6... Qc7 {[%clk 0:11:15.2]}
7. Nbd2 {[%clk 0:11:53.7]} 7... Bxg3 {[%clk 0:11:13.8]} 8. hxg3 {[%clk
0:11:54.9]} 8... Nbd7 {[%clk 0:11:06.9]} 9. Qe2 {[%clk 0:11:53.8]} 9... Nf8
{[%clk 0:11:07]} 10. c3 {[%clk 0:11:53]} 10... Ng6 {[%clk 0:11:06.5]} 11. a3
{[%clk 0:11:45.9]} 11... Bd7 {[%clk 0:11:07.7]} 12. b4 {[%clk 0:11:42.2]} 12...
O-O-O {[%clk 0:10:41]} 13. a4 {[%clk 0:11:38.3]} 13... e5 {[%clk 0:10:41.1]} 14.
dxe5 {[%clk 0:11:28.7]} 14... Nxe5 {[%clk 0:10:37.3]} 15. Nxe5 {[%clk 0:11:30]}
15... Qxe5 {[%clk 0:10:33.8]} 16. Rc1 {[%clk 0:11:31]} 16... Bg4 {[%clk
0:10:25.7]} 17. Nf3 {[%clk 0:11:26.9]} 17... Qe7 {[%clk 0:10:14.8]} 18. a5
{[%clk 0:11:22.4]} 18... Ne4 {[%clk 0:10:13.1]} 19. O-O {[%clk 0:11:12.8]} 19...
h5 {[%clk 0:10:01.8]} 20. Qc2 {[%clk 0:11:06]} 20... f5 {[%clk 0:09:42.4]} 21.
Nh4 {[%clk 0:10:58.9]} 21... g5 {[%clk 0:09:03.6]} 22. Ng6 {[%clk 0:10:59.5]}
22... Qf6 {[%clk 0:09:00]} 23. Nxh8 {[%clk 0:11:00.5]} 23... h4 {[%clk
0:08:55.8]} 24. f3 {[%clk 0:10:53.3]} 24... Bh5 {[%clk 0:08:51.3]} 25. fxe4
{[%clk 0:10:53.6]} 25... hxg3 {[%clk 0:08:41]} 26. Rxf5 {[%clk 0:10:13.4]} 26...
Qxh8 {[%clk 0:08:34.3]} 27. Kf1 {[%clk 0:09:14.2]} 27... Bg4 {[%clk 0:08:22.3]}
28. Ke1 {[%clk 0:09:07.4]} 28... Bxf5 {[%clk 0:08:15.2]} 29. exf5 {[%clk
0:09:08.8]} 29... Qh1+ {[%clk 0:08:04.4]} 30. Bf1 {[%clk 0:09:10.3]} 30... Re8
{[%clk 0:07:36.9]} 31. Qe2 {[%clk 0:08:59.8]} 31... Qg1 {[%clk 0:07:29.9]} 32.
Kd2 {[%clk 0:08:55.8]} 32... Qh2 {[%clk 0:07:11.1]} 33. Qf3 {[%clk 0:08:46.8]}
33... g4 {[%clk 0:06:51.8]} 34. Qxg4 {[%clk 0:08:27.1]} 34... Qh6 {[%clk
0:06:28.9]} 35. Re1 {[%clk 0:08:23.8]} 35... Qf6 {[%clk 0:06:15.6]} 36. Bd3
{[%clk 0:08:20.2]} 36... b6 {[%clk 0:05:27.4]} 37. axb6 {[%clk 0:08:20.7]} 37...
axb6 {[%clk 0:05:24.1]} 38. Qxg3 {[%clk 0:08:21.8]} 38... c5 {[%clk 0:05:08.2]}
39. bxc5 {[%clk 0:08:08.8]} 39... bxc5 {[%clk 0:05:05.3]} 40. Rb1 {[%clk
0:08:10]} 40... Kd7 {[%clk 0:04:52.8]} 41. Rb7+ {[%clk 0:08:07.5]} 1-0

[Event "Rapid della Domenica"]
[Site "Chess.com"]
[Date "2020.05.17"]
[Round "4"]
[White "caramante"]
[Black "malberici"]
[Result "1-0"]
[WhiteElo "1592"]
[BlackElo "1584"]
[TimeControl "720+3"]
[EndTime "7:44:01 PDT"]
[Termination "caramante ha vinto per abbandono"]

1. Nf3 {[%clk 0:12:02.9]} 1... g6 {[%clk 0:11:58]} 2. d4 {[%clk 0:12:04.5]} 2...
Bg7 {[%clk 0:11:59.4]} 3. g3 {[%clk 0:12:05.3]} 3... d6 {[%clk 0:11:57.8]} 4.
Bg2 {[%clk 0:12:07.1]} 4... Nc6 {[%clk 0:11:54.8]} 5. c3 {[%clk 0:12:07.1]} 5...
Nf6 {[%clk 0:11:53.6]} 6. O-O {[%clk 0:12:08.6]} 6... O-O {[%clk 0:11:54.7]} 7.
Re1 {[%clk 0:12:10.8]} 7... e6 {[%clk 0:11:45.7]} 8. e4 {[%clk 0:12:12]} 8...
Ne7 {[%clk 0:11:46.3]} 9. h3 {[%clk 0:12:10.3]} 9... c6 {[%clk 0:11:37.9]} 10.
Qc2 {[%clk 0:12:11.5]} 10... Nd7 {[%clk 0:11:35.3]} 11. Be3 {[%clk 0:12:09.8]}
11... e5 {[%clk 0:11:34.6]} 12. Nbd2 {[%clk 0:12:07.8]} 12... exd4 {[%clk
0:11:31.8]} 13. cxd4 {[%clk 0:12:07.5]} 13... d5 {[%clk 0:11:32.2]} 14. Qb3
{[%clk 0:11:47.3]} 14... Nb6 {[%clk 0:11:29.5]} 15. Rad1 {[%clk 0:11:41.3]}
15... Be6 {[%clk 0:11:27.4]} 16. e5 {[%clk 0:11:40.6]} 16... Rb8 {[%clk
0:11:22]} 17. Ng5 {[%clk 0:11:28.5]} 17... Nc4 {[%clk 0:11:01.8]} 18. Nxe6
{[%clk 0:11:23.8]} 18... fxe6 {[%clk 0:11:00.3]} 19. Nxc4 {[%clk 0:11:24.5]}
19... dxc4 {[%clk 0:10:56.7]} 20. Qxc4 {[%clk 0:11:25.4]} 20... Nd5 {[%clk
0:10:58.2]} 21. Bxd5 {[%clk 0:11:17.6]} 21... cxd5 {[%clk 0:10:56.6]} 22. Qa4
{[%clk 0:11:06.5]} 22... a6 {[%clk 0:10:48.3]} 23. Rc1 {[%clk 0:10:56]} 23...
Qe7 {[%clk 0:10:38.8]} 24. Rc2 {[%clk 0:10:10.1]} 24... h6 {[%clk 0:09:59.6]}
25. Rec1 {[%clk 0:10:04]} 25... g5 {[%clk 0:09:59.4]} 26. Rc7 {[%clk 0:10:02.3]}
26... Qd8 {[%clk 0:09:49.6]} 27. Qd1 {[%clk 0:09:01.7]} 27... Rf7 {[%clk
0:09:29.3]} 28. Rxf7 {[%clk 0:08:57.1]} 28... Kxf7 {[%clk 0:09:29.1]} 29. Qh5+
{[%clk 0:08:58.3]} 29... Kg8 {[%clk 0:09:28.9]} 30. Qg6 {[%clk 0:09:00]} 30...
Qd7 {[%clk 0:09:18.7]} 31. f4 {[%clk 0:08:26.4]} 31... gxf4 {[%clk 0:09:06.1]}
32. Bxf4 {[%clk 0:08:26.7]} 32... Kh8 {[%clk 0:09:01.1]} 33. Rf1 {[%clk
0:08:23]} 33... Rc8 {[%clk 0:08:37.4]} 34. Bxh6 {[%clk 0:08:20.4]} 34... Bxh6
{[%clk 0:08:39.2]} 35. Qxh6+ {[%clk 0:08:21.3]} 35... Qh7 {[%clk 0:08:37.7]} 36.
Qxe6 {[%clk 0:08:21.5]} 36... Rg8 {[%clk 0:08:27.3]} 37. Qf6+ {[%clk 0:08:05.8]}
37... Qg7 {[%clk 0:08:26.9]} 38. e6 {[%clk 0:07:24.1]} 38... Qxf6 {[%clk
0:08:16.3]} 39. Rxf6 {[%clk 0:07:24.6]} 39... Rxg3+ {[%clk 0:08:17.3]} 40. Kh2
{[%clk 0:07:24.8]} 40... Re3 {[%clk 0:08:17.9]} 41. Rf8+ {[%clk 0:07:08.6]}
41... Kg7 {[%clk 0:08:16.9]} 42. Rb8 {[%clk 0:07:04.9]} 42... Rxe6 {[%clk
0:08:10.1]} 43. Rxb7+ {[%clk 0:07:06.7]} 43... Kf6 {[%clk 0:08:01.2]} 44. Rd7
{[%clk 0:07:06.8]} 44... Rb6 {[%clk 0:07:59.9]} 45. Rxd5 {[%clk 0:07:06.4]}
45... Rxb2+ {[%clk 0:08:01.3]} 46. Kg3 {[%clk 0:07:08.2]} 46... Rxa2 {[%clk
0:08:03]} 47. Kg4 {[%clk 0:07:08]} 47... a5 {[%clk 0:08:01.4]} 48. h4 {[%clk
0:07:09.8]} 48... a4 {[%clk 0:08:00.9]} 49. Rd6+ {[%clk 0:07:11.6]} 49... Kg7
{[%clk 0:07:59.6]} 50. Ra6 {[%clk 0:07:10.8]} 50... a3 {[%clk 0:08:01]} 51. h5
{[%clk 0:07:12.5]} 51... Ra1 {[%clk 0:07:59.1]} 52. Kg5 {[%clk 0:07:07.2]} 52...
a2 {[%clk 0:07:59.1]} 53. Ra7+ {[%clk 0:07:08.9]} 53... Kh8 {[%clk 0:07:59.9]}
54. Kh6 {[%clk 0:07:10.8]} 54... Kg8 {[%clk 0:07:57.3]} 55. Ra8+ {[%clk
0:07:05.6]} 55... Kf7 {[%clk 0:07:58.5]} 56. Kh7 {[%clk 0:07:07.5]} 56... Ke6
{[%clk 0:07:59]} 57. h6 {[%clk 0:07:09.6]} 57... Kd5 {[%clk 0:07:59.9]} 58. Kh8
{[%clk 0:07:00.7]} 58... Kxd4 {[%clk 0:07:56]} 59. h7 {[%clk 0:07:02.3]} 59...
Ke5 {[%clk 0:07:55]} 60. Kg8 {[%clk 0:07:01.7]} 60... Rg1+ {[%clk 0:07:54.1]}
61. Kf7 {[%clk 0:07:00.7]} 61... Rf1+ {[%clk 0:07:54.4]} 62. Ke7 {[%clk
0:07:01.3]} 62... a1=Q {[%clk 0:07:33.2]} 63. Rxa1 {[%clk 0:07:00.5]} 63... Rxa1
{[%clk 0:07:32.7]} 64. h8=Q+ {[%clk 0:07:00.1]} 1-0

[Event "Rapid della Domenica"]
[Site "Chess.com"]
[Date "2020.05.17"]
[Round "4"]
[White "sirmale49"]
[Black "OMatteoWuO"]
[Result "0-1"]
[WhiteElo "1433"]
[BlackElo "1206"]
[TimeControl "720+3"]
[EndTime "7:50:10 PDT"]
[Termination "OMatteoWuO ha vinto per abbandono"]

1. e4 {[%clk 0:11:59.3]} 1... c5 {[%clk 0:12:00.8]} 2. f4 {[%clk 0:12:00.7]}
2... Nc6 {[%clk 0:11:35.8]} 3. Nf3 {[%clk 0:12:02.5]} 3... d6 {[%clk 0:11:33.5]}
4. Bc4 {[%clk 0:12:03.4]} 4... Nf6 {[%clk 0:11:31.8]} 5. d3 {[%clk 0:12:01.1]}
5... Bg4 {[%clk 0:11:32.8]} 6. O-O {[%clk 0:12:01]} 6... Bxf3 {[%clk 0:11:29.1]}
7. Qxf3 {[%clk 0:11:56.7]} 7... Nd4 {[%clk 0:11:21.9]} 8. Qd1 {[%clk 0:11:52.7]}
8... b5 {[%clk 0:11:10.8]} 9. c3 {[%clk 0:11:33.7]} 9... bxc4 {[%clk 0:11:11.2]}
10. cxd4 {[%clk 0:11:35.2]} 10... cxd3 {[%clk 0:11:03]} 11. Qxd3 {[%clk
0:11:25]} 11... cxd4 {[%clk 0:10:59]} 12. e5 {[%clk 0:11:05.8]} 12... dxe5
{[%clk 0:10:40.2]} 13. fxe5 {[%clk 0:11:05.2]} 13... Ng4 {[%clk 0:10:24.8]} 14.
Qf5 {[%clk 0:10:10.5]} 14... Ne3 {[%clk 0:10:12.1]} 15. Qxf7+ {[%clk 0:10:04.4]}
15... Kd7 {[%clk 0:10:13.2]} 16. e6+ {[%clk 0:10:01.7]} 16... Kc8 {[%clk
0:09:59.8]} 17. Bxe3 {[%clk 0:10:00]} 17... dxe3 {[%clk 0:10:01.2]} 18. Rc1+
{[%clk 0:10:00.1]} 18... Kb8 {[%clk 0:09:55]} 19. Qf4+ {[%clk 0:09:59.8]} 19...
Qd6 {[%clk 0:09:56.2]} 20. Qxe3 {[%clk 0:09:39.8]} 20... Qb6 {[%clk 0:09:57.1]}
21. Qxb6+ {[%clk 0:08:40.7]} 21... axb6 {[%clk 0:09:57.4]} 22. Nc3 {[%clk
0:08:41.9]} 22... g6 {[%clk 0:09:56.2]} 23. Nd5 {[%clk 0:08:30.2]} 23... Bg7
{[%clk 0:09:28.3]} 24. Rc2 {[%clk 0:08:29.3]} 24... Bd4+ {[%clk 0:09:26.6]} 25.
Kh1 {[%clk 0:08:26.4]} 25... Bc5 {[%clk 0:09:28.1]} 26. a3 {[%clk 0:08:19.6]}
26... Rd8 {[%clk 0:09:21.5]} 27. Rd2 {[%clk 0:07:47.5]} 27... Ra4 {[%clk
0:08:28.4]} 28. Rad1 {[%clk 0:07:42.9]} 28... Re4 {[%clk 0:07:37]} 29. g3 {[%clk
0:07:29.3]} 29... Rxe6 {[%clk 0:07:33]} 30. Kg2 {[%clk 0:07:03.7]} 30... g5
{[%clk 0:06:51.4]} 31. Kf3 {[%clk 0:06:33.8]} 31... h5 {[%clk 0:06:43.1]} 32. b4
{[%clk 0:06:18.8]} 32... g4+ {[%clk 0:05:42.1]} 33. Kg2 {[%clk 0:05:50.9]} 33...
Be3 {[%clk 0:05:36.7]} 34. Re2 {[%clk 0:05:11.8]} 34... Re5 {[%clk 0:05:17.1]}
35. Nxe3 {[%clk 0:05:02]} 35... Rxd1 {[%clk 0:05:13.5]} 36. Nxd1 {[%clk
0:04:41]} 36... Rxe2+ {[%clk 0:05:14.4]} 37. Kf1 {[%clk 0:04:42.3]} 37... Rxh2
{[%clk 0:05:14]} 38. Ne3 {[%clk 0:04:39.6]} 38... Ra2 {[%clk 0:05:14]} 39. Nc4
{[%clk 0:04:36.5]} 39... b5 {[%clk 0:05:10.3]} 40. Ne5 {[%clk 0:04:26]} 40...
Rxa3 {[%clk 0:05:10.1]} 41. Nc6+ {[%clk 0:04:27.5]} 41... Kc7 {[%clk 0:05:09.4]}
42. Nxe7 {[%clk 0:04:29]} 42... Rxg3 {[%clk 0:05:08.3]} 43. Nd5+ {[%clk
0:04:23.1]} 43... Kd6 {[%clk 0:05:07.1]} 44. Nb6 {[%clk 0:04:00.6]} 44... Rf3+
{[%clk 0:05:06.3]} 45. Kg2 {[%clk 0:03:59.9]} 45... h4 {[%clk 0:05:04.9]} 46.
Nc8+ {[%clk 0:04:00.5]} 46... Kd7 {[%clk 0:05:03.6]} 47. Nb6+ {[%clk 0:04:00.2]}
47... Kc6 {[%clk 0:05:03.5]} 48. Nc8 {[%clk 0:04:01.2]} 48... h3+ {[%clk
0:05:02.6]} 49. Kh2 {[%clk 0:04:00.4]} 49... Rf2+ {[%clk 0:04:56.1]} 50. Kh1
{[%clk 0:03:53.2]} 50... g3 {[%clk 0:04:48.7]} 51. Ne7+ {[%clk 0:03:54.1]} 51...
Kd7 {[%clk 0:04:46.2]} 52. Kg1 {[%clk 0:03:11.3]} 52... h2+ {[%clk 0:04:46.8]}
53. Kh1 {[%clk 0:03:01.5]} 53... Rf1+ {[%clk 0:04:47.4]} 54. Kg2 {[%clk
0:02:52.8]} 54... h1=Q+ {[%clk 0:04:48.2]} 0-1

[Event "Rapid della Domenica"]
[Site "Chess.com"]
[Date "2020.05.17"]
[Round "5"]
[White "malberici"]
[Black "crippo"]
[Result "0-1"]
[WhiteElo "1518"]
[BlackElo "1550"]
[TimeControl "720+3"]
[EndTime "7:52:28 PDT"]
[Termination "crippo ha vinto per abbandono"]

1. d4 {[%clk 0:12:02.9]} 1... d5 {[%clk 0:12:01.2]} 2. c4 {[%clk 0:12:04.5]}
2... c6 {[%clk 0:12:02.5]} 3. e3 {[%clk 0:11:59.6]} 3... e6 {[%clk 0:12:04.5]}
4. a3 {[%clk 0:12:00.8]} 4... Nf6 {[%clk 0:12:06.3]} 5. Nf3 {[%clk 0:12:03.2]}
5... Ne4 {[%clk 0:12:08]} 6. cxd5 {[%clk 0:12:03.2]} 6... exd5 {[%clk 0:12:09]}
7. Bd3 {[%clk 0:12:03]} 7... f5 {[%clk 0:12:11]} 8. Nc3 {[%clk 0:12:00.2]} 8...
Bd6 {[%clk 0:12:11.6]} 9. Nd2 {[%clk 0:11:39.7]} 9... O-O {[%clk 0:12:11.7]} 10.
f3 {[%clk 0:11:38]} 10... Qh4+ {[%clk 0:12:11]} 11. g3 {[%clk 0:11:35.1]} 11...
Bxg3+ {[%clk 0:12:11.7]} 12. hxg3 {[%clk 0:11:36.4]} 12... Qxg3+ {[%clk
0:12:05.2]} 0-1

[Event "Rapid della Domenica"]
[Site "Chess.com"]
[Date "2020.05.17"]
[Round "5"]
[White "Mrtre7"]
[Black "ottovolante"]
[Result "1-0"]
[WhiteElo "1398"]
[BlackElo "990"]
[TimeControl "720+3"]
[EndTime "7:56:18 PDT"]
[Termination "Mrtre7 ha vinto per scaccomatto"]

1. d4 {[%clk 0:11:58.5]} 1... e6 {[%clk 0:11:58.6]} 2. c4 {[%clk 0:12:00.4]}
2... Nf6 {[%clk 0:11:57.5]} 3. Nc3 {[%clk 0:12:01]} 3... d5 {[%clk 0:11:58.2]}
4. cxd5 {[%clk 0:12:02]} 4... Nxd5 {[%clk 0:11:57]} 5. e4 {[%clk 0:12:02]} 5...
Nxc3 {[%clk 0:11:57.9]} 6. bxc3 {[%clk 0:12:03.6]} 6... c6 {[%clk 0:11:53.8]} 7.
Nf3 {[%clk 0:11:58.2]} 7... Nd7 {[%clk 0:11:48.1]} 8. Bd3 {[%clk 0:11:57.7]}
8... h6 {[%clk 0:11:45.4]} 9. O-O {[%clk 0:11:59.2]} 9... Nf6 {[%clk 0:11:46.6]}
10. e5 {[%clk 0:11:58.8]} 10... Nd5 {[%clk 0:11:45.6]} 11. c4 {[%clk 0:11:59.4]}
11... Nb6 {[%clk 0:11:45.6]} 12. Be3 {[%clk 0:11:42.8]} 12... Nd7 {[%clk
0:11:31.1]} 13. Rb1 {[%clk 0:11:43.3]} 13... Be7 {[%clk 0:11:12]} 14. Qc2 {[%clk
0:11:39]} 14... b6 {[%clk 0:11:10.2]} 15. Rbd1 {[%clk 0:11:33.1]} 15... Nf8
{[%clk 0:11:11.1]} 16. d5 {[%clk 0:11:25]} 16... exd5 {[%clk 0:10:35.1]} 17.
cxd5 {[%clk 0:11:26.5]} 17... cxd5 {[%clk 0:10:36.1]} 18. Bb5+ {[%clk
0:11:21.4]} 18... Bd7 {[%clk 0:10:36.3]} 19. Rxd5 {[%clk 0:11:20.9]} 19... Rc8
{[%clk 0:10:32.4]} 20. Qa4 {[%clk 0:11:16.6]} 20... g5 {[%clk 0:10:13.1]} 21.
Rfd1 {[%clk 0:11:11.6]} 21... Rg8 {[%clk 0:10:07.4]} 22. Bxd7+ {[%clk
0:11:11.6]} 22... Nxd7 {[%clk 0:10:08.4]} 23. Rxd7 {[%clk 0:11:10.7]} 23... Qxd7
{[%clk 0:09:58.9]} 24. Qxd7+ {[%clk 0:11:11.9]} 24... Kf8 {[%clk 0:09:58.9]} 25.
Qxc8+ {[%clk 0:11:08.9]} 25... Bd8 {[%clk 0:09:56]} 26. Rxd8+ {[%clk 0:11:05.7]}
26... Ke7 {[%clk 0:09:57.1]} 27. Qd7# {[%clk 0:11:06.3]} 1-0

[Event "Rapid della Domenica"]
[Site "Chess.com"]
[Date "2020.05.17"]
[Round "5"]
[White "laremaro"]
[Black "OMatteoWuO"]
[Result "1-0"]
[WhiteElo "1602"]
[BlackElo "1204"]
[TimeControl "720+3"]
[EndTime "7:57:30 PDT"]
[Termination "laremaro ha vinto per abbandono"]

1. e4 {[%clk 0:12:02.9]} 1... c5 {[%clk 0:12:00.1]} 2. d4 {[%clk 0:12:03.5]}
2... cxd4 {[%clk 0:12:01.1]} 3. c3 {[%clk 0:11:52]} 3... Nf6 {[%clk 0:11:45.9]}
4. e5 {[%clk 0:11:52.6]} 4... Nd5 {[%clk 0:11:34.8]} 5. cxd4 {[%clk 0:11:53.7]}
5... Nc6 {[%clk 0:11:35.2]} 6. Nf3 {[%clk 0:11:46.4]} 6... e6 {[%clk 0:11:29.1]}
7. Nc3 {[%clk 0:11:41.4]} 7... Bb4 {[%clk 0:11:10.3]} 8. Bd2 {[%clk 0:11:33.3]}
8... d6 {[%clk 0:11:08.8]} 9. Nxd5 {[%clk 0:11:27]} 9... Bxd2+ {[%clk
0:11:08.2]} 10. Qxd2 {[%clk 0:11:26.4]} 10... exd5 {[%clk 0:11:01.6]} 11. Bb5
{[%clk 0:11:04.9]} 11... dxe5 {[%clk 0:10:36.1]} 12. Nxe5 {[%clk 0:11:03.3]}
12... Qe7 {[%clk 0:10:23.6]} 13. O-O {[%clk 0:11:01.5]} 13... Bd7 {[%clk
0:10:16.4]} 14. Rfe1 {[%clk 0:10:59.3]} 14... O-O {[%clk 0:10:05.9]} 15. Nxc6
{[%clk 0:10:50.1]} 15... Qd6 {[%clk 0:09:38]} 16. Ne7+ {[%clk 0:10:45.1]} 16...
Kh8 {[%clk 0:09:36.3]} 17. Bxd7 {[%clk 0:10:22.6]} 17... Qxd7 {[%clk 0:09:36]}
18. Qg5 {[%clk 0:10:19.1]} 18... f6 {[%clk 0:09:22.9]} 19. Qxd5 {[%clk
0:10:16.1]} 19... Qxd5 {[%clk 0:09:22.8]} 20. Nxd5 {[%clk 0:10:17.2]} 20... Rad8
{[%clk 0:09:19.3]} 21. Nc7 {[%clk 0:10:13]} 21... Rxd4 {[%clk 0:09:18.4]} 22.
Ne6 {[%clk 0:10:12.6]} 1-0

[Event "Rapid della Domenica"]
[Site "Chess.com"]
[Date "2020.05.17"]
[Round "5"]
[White "sergiodone"]
[Black "fausto2p"]
[Result "1-0"]
[WhiteElo "1436"]
[BlackElo "1214"]
[TimeControl "720+3"]
[EndTime "7:58:46 PDT"]
[Termination "sergiodone ha vinto per abbandono"]

1. e4 {[%clk 0:11:33]} 1... e6 {[%clk 0:12:00]} 2. d4 {[%clk 0:11:26]} 2... d5
{[%clk 0:12:00.9]} 3. Nd2 {[%clk 0:11:26.2]} 3... Nf6 {[%clk 0:11:57.7]} 4. Bd3
{[%clk 0:11:23.3]} 4... c5 {[%clk 0:11:55.4]} 5. c3 {[%clk 0:11:22.6]} 5... Nc6
{[%clk 0:11:48.9]} 6. Ngf3 {[%clk 0:11:23.5]} 6... cxd4 {[%clk 0:11:42.7]} 7.
cxd4 {[%clk 0:11:23.7]} 7... Bb4 {[%clk 0:10:54.6]} 8. e5 {[%clk 0:11:08.7]}
8... Nd7 {[%clk 0:10:49.9]} 9. O-O {[%clk 0:11:07.3]} 9... Be7 {[%clk
0:10:08.7]} 10. a3 {[%clk 0:11:00.2]} 10... Qb6 {[%clk 0:09:57.9]} 11. Nb3
{[%clk 0:10:54.3]} 11... O-O {[%clk 0:09:52.9]} 12. Bd2 {[%clk 0:10:54.9]} 12...
a5 {[%clk 0:08:55]} 13. Bc3 {[%clk 0:10:56.5]} 13... a4 {[%clk 0:08:28.2]} 14.
Nbd2 {[%clk 0:10:39.4]} 14... Na5 {[%clk 0:08:05]} 15. Rc1 {[%clk 0:10:36.4]}
15... Qb3 {[%clk 0:06:52.7]} 16. Nxb3 {[%clk 0:10:33.7]} 1-0

[Event "Rapid della Domenica"]
[Site "Chess.com"]
[Date "2020.05.17"]
[Round "5"]
[White "caramante"]
[Black "pedrak"]
[Result "0-1"]
[WhiteElo "1580"]
[BlackElo "1680"]
[TimeControl "720+3"]
[EndTime "8:01:58 PDT"]
[Termination "pedrak ha vinto per abbandono"]

1. Nf3 {[%clk 0:12:02.9]} 1... d5 {[%clk 0:11:58.5]} 2. d4 {[%clk 0:12:03.7]}
2... Bf5 {[%clk 0:11:58.8]} 3. g3 {[%clk 0:12:04.4]} 3... c6 {[%clk 0:11:59.6]}
4. Bg2 {[%clk 0:12:06.2]} 4... e6 {[%clk 0:12:01.1]} 5. c3 {[%clk 0:12:08.2]}
5... Nf6 {[%clk 0:12:02.5]} 6. O-O {[%clk 0:12:10]} 6... Be7 {[%clk 0:12:02]} 7.
Re1 {[%clk 0:12:11.8]} 7... h6 {[%clk 0:12:01.5]} 8. h3 {[%clk 0:12:13.7]} 8...
O-O {[%clk 0:12:00.9]} 9. Qb3 {[%clk 0:12:15.6]} 9... Qb6 {[%clk 0:12:01.3]} 10.
Nbd2 {[%clk 0:12:06.1]} 10... Ne4 {[%clk 0:12:01.1]} 11. Ne5 {[%clk 0:11:52.6]}
11... Nxd2 {[%clk 0:11:56.2]} 12. Bxd2 {[%clk 0:11:52.1]} 12... f6 {[%clk
0:11:42.6]} 13. Nf3 {[%clk 0:11:44.7]} 13... Be4 {[%clk 0:11:42.5]} 14. Nh4
{[%clk 0:11:39.8]} 14... Bxg2 {[%clk 0:11:43.4]} 15. Nxg2 {[%clk 0:11:40.3]}
15... Nd7 {[%clk 0:11:43.9]} 16. e4 {[%clk 0:11:38.2]} 16... Qxb3 {[%clk
0:11:43.3]} 17. axb3 {[%clk 0:11:38.5]} 17... Rfe8 {[%clk 0:11:34.5]} 18. exd5
{[%clk 0:11:36.8]} 18... exd5 {[%clk 0:11:34.5]} 19. Nf4 {[%clk 0:11:37.6]}
19... a6 {[%clk 0:11:27.2]} 20. Ne6 {[%clk 0:11:36.9]} 20... Rac8 {[%clk
0:11:28.1]} 21. Bf4 {[%clk 0:11:27.5]} 21... Kf7 {[%clk 0:11:28.1]} 22. Nc7
{[%clk 0:10:37.3]} 22... Rg8 {[%clk 0:11:14.6]} 23. Re2 {[%clk 0:10:36.6]} 23...
g5 {[%clk 0:11:12.9]} 24. Rae1 {[%clk 0:10:33.2]} 24... Bf8 {[%clk 0:10:56.9]}
25. Ne6 {[%clk 0:09:20.9]} 25... gxf4 {[%clk 0:10:50.6]} 26. Nxf4 {[%clk
0:09:21.5]} 26... Bd6 {[%clk 0:10:50.1]} 27. Nh5 {[%clk 0:09:13.9]} 27... Rce8
{[%clk 0:10:42.2]} 28. Rxe8 {[%clk 0:09:05.5]} 28... Rxe8 {[%clk 0:10:43.2]} 29.
Rxe8 {[%clk 0:09:03.9]} 29... Kxe8 {[%clk 0:10:44.5]} 30. Ng7+ {[%clk
0:09:04.8]} 30... Kf7 {[%clk 0:10:43.9]} 31. Nf5 {[%clk 0:09:05.6]} 31... Bf8
{[%clk 0:10:45.2]} 32. Kg2 {[%clk 0:09:03.8]} 32... Kg6 {[%clk 0:10:35.3]} 33.
g4 {[%clk 0:09:05.2]} 33... h5 {[%clk 0:10:36.3]} 34. f3 {[%clk 0:09:05.4]}
34... hxg4 {[%clk 0:10:37.1]} 35. fxg4 {[%clk 0:09:01.9]} 35... a5 {[%clk
0:09:58.5]} 36. Kf3 {[%clk 0:08:57.9]} 36... Nb8 {[%clk 0:09:57.8]} 37. h4
{[%clk 0:08:29.5]} 37... Na6 {[%clk 0:09:58.5]} 38. Ke3 {[%clk 0:08:27.8]} 38...
Nc7 {[%clk 0:09:59.5]} 39. Kd3 {[%clk 0:08:23.9]} 39... Ne6 {[%clk 0:10:00.6]}
40. c4 {[%clk 0:08:22.9]} 40... Ng7 {[%clk 0:09:55.8]} 41. h5+ {[%clk
0:08:12.7]} 41... Kg5 {[%clk 0:09:43.5]} 42. h6 {[%clk 0:08:09.3]} 42... Nxf5
{[%clk 0:09:44.8]} 43. h7 {[%clk 0:08:10.1]} 43... Bg7 {[%clk 0:09:46.3]} 44.
gxf5 {[%clk 0:08:11.8]} 44... Kxf5 {[%clk 0:09:48]} 45. cxd5 {[%clk 0:08:11.7]}
45... cxd5 {[%clk 0:09:49.1]} 46. b4 {[%clk 0:08:12.8]} 46... axb4 {[%clk
0:09:48.1]} 47. Kc2 {[%clk 0:08:14]} 47... Ke4 {[%clk 0:09:48.6]} 48. Kb3 {[%clk
0:08:16.1]} 48... Kxd4 {[%clk 0:09:49.8]} 49. Kxb4 {[%clk 0:08:18.2]} 49... f5
{[%clk 0:09:51.4]} 50. Kb5 {[%clk 0:08:17]} 50... f4 {[%clk 0:09:51]} 51. Kb6
{[%clk 0:08:16]} 51... Kc4 {[%clk 0:09:50.9]} 52. Kxb7 {[%clk 0:08:17.2]} 52...
Bxb2 {[%clk 0:09:52.2]} 0-1